Cogmind - Beta 15 @@@ ROGUE MODE // 2025.08.04 @ 10:42:21 Player: Btuck Result: Destroyed by BF-BO0(R) with Subdweller Beam Cannon Performance ------------- Evolutions (0) 0 Regions Visited (1) 200 Robots Destroyed (13) 65 Value Destroyed (220) 220 Prototype IDs (0) 0 Alien Tech Used (0) 0 Bonus (0) 0 TOTAL SCORE: 485 Bonus ------- None Cogmind --------- Core Integrity 0/250 Matter 252/300 Energy 98/100 System Corruption 0% Temperature Hot (255) Movement Core (200) Ox3 Location -10/Materials Parts ------- > --- POWER (1) -------- (None) > --- PROPULSION (2) --- (None) > --- UTILITY (2) ------ Medium Storage Unit > --- WEAPON (2) ------- Medium Laser > --- INVENTORY (10) --- Ion Engine Small Storage Unit Seismic Detector Peak State ------------ > --- POWER ------------ Ion Engine > --- PROPULSION ------- Light Treads Light Treads > --- UTILITY ---------- Small Storage Unit Seismic Detector > --- WEAPON ----------- Assault Rifle Light Assault Rifle > --- INVENTORY -------- Ion Engine Medium Laser [Rating: 7] Favorites ----------- Power Ion Engine Engine Ion Engine Propulsion Light Treads Treads Light Treads Utility Seismic Detector Device Seismic Detector Storage Medium Storage Unit Weapon Assault Rifle Energy Gun Medium Laser Ballistic Gun Assault Rifle Build | -11 -10 ------- Run | Yrd Mat Slots Evolved . | . . Power . | . . Propulsion . | . . Utility . | . . Weapon . | . . Parts Attached 11 | 7 4 Power 1 | 1 . Engine 1 | 1 . Core . | . . Reactor . | . . Propulsion 2 | 2 . Treads 2 | 2 . Leg . | . . Wheel . | . . Hover . | . . Flight . | . . Utility 4 | 2 2 Device 2 | 1 1 Storage 2 | 1 1 Processor . | . . Hackware . | . . Protection . | . . Artifact . | . . Weapon 4 | 2 2 Energy Gun 1 | . 1 Energy Cannon . | . . Ballistic Gun 3 | 2 1 Ballistic Cannon . | . . Launcher . | . . Special Weapon . | . . Impact Weapon . | . . Slashing Weapon . | . . Piercing Weapon . | . . Special Melee Weapon . | . . Unidentified Prototypes . | . . Parts Lost 6 | . 6 Power 1 | . 1 Propulsion 2 | . 2 Utility 1 | . 1 Weapon 2 | . 2 Highest Loss Streak 5 | . 5 To Critical Strikes 1 | . 1 Average Backups 3 | 1 3 Power . | . 1 Propulsion . | . . Utility 1 | . 1 Weapon . | . . Tool/Special . | . . Unused Backups 2 | . 2 Power 1 | . 1 Propulsion . | . . Utility 1 | . 1 Weapon . | . . Tool/Special . | . . Average Slot Usage (%) 91 | . 91 Engine 13 | . 13 Treads 20 | . 20 Device 13 | . 13 Storage 14 | . 14 Ballistic Gun 27 | . 27 Peak Build Rating 7 | 7 7 Average Rating 6 | 5 6 On Entrance 3 | . 7 Naked Turns . | . . Heaviest Build 19 | 14 19 Greatest Support 40 | 40 40 Greatest Overweight (x) 3 | . 3 Average Overweight (x) . | . . Largest Inventory Capacity 10 | 8 10 Average Capacity 9 | 7 9 Most Carried 5 | 3 5 Average Carried 3 | 1 3 Final Capacity 10 | 8 10 Final Carried 3 | 3 3 Class Distribution -------------------- 100% | Mutant Dominant Class ---------------- Mutant | -10/Materials Resources | -11 -10 ----------- Run | Yrd Mat Matter Collected 433 | 282 151 Remotely . | . . Salvage Created 352 | 48 304 Parts 39 | 8 31 Haulers Intercepted 1 | . 1 Recyclers Shooed . | . . Parts Field Recycled . | . . Retrieved Matter . | . . Parts Self-Destructed . | . . Prevented . | . . Kills | -11 -10 ------- Run | Yrd Mat Combat Hostiles Destroyed 7 | . 7 Guns 7 | . 7 Classes Destroyed 5 | 1 4 Builder 3 | . 3 Tunneler 2 | 2 . Hauler 1 | . 1 Swarmer 3 | . 3 Grunt 4 | . 4 Best Kill Streak 7 | 2 7 Combat Bots Only 4 | . 4 Max Kills in Single Turn 2 | 1 2 Gunslinging . | . . Exploded . | . . Melee . | . . Uniques/NPCs Destroyed . | . . Combat | -11 -10 -------- Run | Yrd Mat Hostile Shots Fired 91 | . 91 Missed 23 | . 23 Hits 68 | . 68 Projectile 68 | . 68 Critical Strikes 2 | . 2 Damage Taken 1043 | . 1043 Core 251 | . 251 Absorbed by Shields . | . . Core Remaining (%) 100 | 100 . Volleys Fired 53 | 8 45 Largest 2 | 2 2 Hottest 70 | 40 70 Shots Fired 104 | 16 88 Gun 104 | 16 88 Cannon . | . . Launcher . | . . Special . | . . Kinetic 101 | 16 85 Thermal 3 | . 3 Explosive . | . . Electromagnetic . | . . Robot Hit Streak 16 | 4 16 Robot Miss Streak 6 | 3 6 Penetration Max . | . . Secondary Targets 1 | . 1 Max Gunslinging Chain 1 | . 1 Shots Hit Robots 59 | 6 53 Core Hits 28 | 3 25 Critical Kills . | . . Critical Parts Destroyed . | . . Critical Strikes . | . . Melee Attacks . | . . Impact . | . . Slashing . | . . Piercing . | . . Sneak Attacks . | . . Combat Hostiles . | . . Follow-up Attacks . | . . Damage Inflicted 678 | 57 621 Guns 678 | 57 621 Cannons . | . . Explosions . | . . Melee . | . . Ramming . | . . Kinetic 641 | 57 584 Thermal 37 | . 37 Explosive . | . . Electromagnetic . | . . Impact . | . . Slashing . | . . Piercing . | . . Highest Corruption . | . . Average Corruption . | . . Corruption Purged . | . . Corruption Blocked . | . . Overload Shots . | . . Overflow Damage . | . . Projectiles . | . . Explosions . | . . Melee . | . . Knockbacks . | . . Impact . | . . Kinetic . | . . Secondary . | . . Self-Inflicted Damage . | . . Shots . | . . Rammed . | . . Targets Rammed . | . . Kicked . | . . Crushed . | . . Highest Temperature 296 | . 296 Average Temperature 65 | . 65 Received Heat Transfer 652 | . 652 Siege Activations . | . . Martial Activations . | . . Shielding Activations . | . . Robots Disrupted . | . . Combat Hostiles . | . . Robots Corrupted . | . . Combat Hostiles . | . . Parts Fried . | . . Impact Corruptions . | . . Robots Melted . | . . Combat Hostiles . | . . Parts Melted . | . . Heat Transferred 111 | . 111 Parts Sabotaged . | . . Parts Stolen . | . . Parts Stripped . | . . Power Chain Reactions . | . . Alert | -11 -10 ------- Run | Yrd Mat Maximum Alert Level . | . . Low Security (%) 100 | 100 100 Level 1 . | . . Level 2 . | . . Level 3 . | . . Level 4 . | . . Level 5 . | . . High Security . | . . Max Security . | . . Peak Influence 153 | 5 153 Initial . | . . Average 43 | . 53 Influence Increases 235 | 10 225 Destroy 0b10 Robot/C 140 | . 140 Destroy 0b10 Robot/NC 30 | 10 20 Destroy Leader 32 | . 32 Successful Hack 18 | . 18 Disable Machine 15 | . 15 Influence Decreases 235 | 10 225 Time Decay 196 | 10 186 Lost Part 39 | . 39 Squads Dispatched 1 | . 1 Investigation . | . . Extermination . | . . Reinforcement 1 | . 1 Assault . | . . Garrison . | . . Intercept . | . . Searches Triggered . | . . Construction Impeded . | . . Haulers Reinforced . | . . Active Scanning Responses . | . . Cargo Convoy Interrupts . | . . Stealth | -11 -10 --------- Run | Yrd Mat Distress Signals 3 | . 3 Communications Jammed . | . . Distress Signals . | . . Times Spotted 20 | . 20 Peak Tracking Total 5 | . 5 Tactical Retreats . | . . Traps | -11 -10 ------- Run | Yrd Mat Traps Triggered . | . . Indirectly . | . . Trap Hack Attempts . | . . Triggered . | . . Disarmed . | . . Reprogrammed . | . . Reused . | . . Traps Extracted . | . . Installed . | . . Triggered . | . . Machines | -11 -10 ---------- Run | Yrd Mat Machines Disabled 1 | . 1 Max in Single Turn 1 | . 1 Machines Repaired . | . . Machines Dismantled . | . . Machines Sabotaged . | . . Overloaded Fab Kills . | . . Hacking | -11 -10 --------- Run | Yrd Mat Machines Accessed 2 | . 2 Terminals 2 | . 2 Fabricators . | . . Repair Stations . | . . Recycling Units . | . . Scanalyzers . | . . Garrison Access . | . . Total Hacks 9 | . 9 Successful 6 | . 6 Failed 3 | . 3 Catastrophic . | . . Database Lockouts . | . . Manual 5 | . 5 Terminals 9 | . 9 Fabricators . | . . Repair Stations . | . . Recycling Units . | . . Scanalyzers . | . . Garrison Access . | . . Terminal Hacks 4 | . 4 Robot Analysis 2 | . 2 Hauler Manifests 1 | . 1 Zone Layout 1 | . 1 Fabricator Hacks . | . . Repair Station Hacks . | . . Recycling Unit Hacks . | . . Scanalyzer . | . . Garrison Access Hacks . | . . Unauthorized Hacks 2 | . 2 Terminals 2 | . 2 Botnet 2 | . 2 Fabricators . | . . Repair Stations . | . . Recycling Units . | . . Scanalyzers . | . . Garrison Access . | . . Data Cores Recovered . | . . Used . | . . Hacking Detections 1 | . 1 Full Trace Events . | . . Feedback Events . | . . Feedback Blocked . | . . Robot Schematics Acquired . | . . Robots Built . | . . Authchips . | . . Time . | . . Total Robot Build Rating . | . . Part Schematics Acquired . | . . Parts Built . | . . Authchips . | . . Time . | . . Total Part Build Rating . | . . Parts Repaired . | . . Time . | . . Parts Recycled . | . . Recycled Matter . | . . Retrieved Matter . | . . Retrieved Components . | . . Parts Scanalyzed . | . . Part Schematics Acquired . | . . Parts Damaged . | . . Bothacking | -11 -10 ------------ Run | Yrd Mat Used RIF Installer . | . . Robots Hacked . | . . Non-combat . | . . Combat . | . . Robot Hacks Applied . | . . Relay Couplers Released . | . . Fabnet Peak Effective % . | . . Robots Rewired . | . . Allies Hacked . | . . Hacks Repelled . | . . Allies | -11 -10 -------- Run | Yrd Mat Total Allies . | . . Largest Group . | . . Highest-Rated Group . | . . Highest-Rated Ally . | . . Total Orders . | . . Ally Attacks . | . . Total Damage . | . . Kills . | . . Allies Corrupted . | . . Allies Melted . | . . Intel | -11 -10 ------- Run | Yrd Mat Active Infowar (turns) 702 | 64 638 Seismic 702 | 64 638 Robot Analysis Total 2 | . 2 Derelict Logs Recovered . | . . Drone Launches . | . . Drone Recoveries . | . . Exploration | -11 -10 ------------- Run | Yrd Mat Turns Passed 809 | 159 650 Spaces Moved 388 | 80 308 Core 4 | 3 1 Treads 384 | 77 307 Legs . | . . Wheels . | . . Hover . | . . Flight . | . . Fastest Speed 50 | 50 160 Average Speed 159 | 155 160 Slowest Speed 200 | 160 200 Overloaded Moves . | . . Propulsion Burnouts . | . . Robots Hopped . | . . Potential Cave-ins . | . . Cave-ins Triggered . | . . Exploration Rate (%) 32 | 7 58 Regions Visited 1 Branch Regions . Pre-discovered Areas . | . . Known Exits Taken . | . . Unknown Exits Taken 1 | 1 . Scrap Searched . | . . Spaces Dug . | . . Terrain Destroyed . | . . Melee . | . . Projectile . | . . AOE . | . . Terrain Rammed . | . . Walls Destroyed . | . . Machines Disabled . | . . Actions | -11 -10 --------- Run | Yrd Mat Total 482 | 97 385 Wait 25 | . 25 Move 387 | 79 308 Hop . | . . Pick Up 3 | 3 . Fast Attach 8 | 7 1 Attach 1 | . 1 Detach 1 | . 1 Swap 2 | . 2 Drop 2 | . 2 Fire 53 | 8 45 Melee . | . . Ram . | . . Kick . | . . Crush . | . . Escape Stasis . | . . Rewire . | . . Trap . | . . Miscellaneous . | . . Route ------- -11/Scrapyard -10/Materials (discovered 4 exits: [*Mat] / [*Min x2] / [*Sub]) History --------- Turn | Location | Event 52 | -11/Scrapyard | Discovered new exit (range 15) 160 | -11/Scrapyard | Entered Materials 251 | -10/Materials | Discovered new exit (range 3) 323 | -10/Materials | Build established: Mutant 358 | -10/Materials | Discovered new exit (range 8) 458 | -10/Materials | Discovered new exit (range 9) 557 | -10/Materials | Discovered new exit (range 15) 660 | -10/Materials | Derelicts attacked the area 794 | -10/Materials | Core integrity fell below 50% 807 | -10/Materials | Core integrity fell below 20% 810 | -10/Materials | Destroyed by BF-BO0(R) with Subdweller Beam Cannon Last Messages --------------- 00515_ Dropped Lgt. Assault Rifle. 00516_ K-01 Serf collects debris. 00524_ Acquired 41 matter. 00524_ K-01 Serf collects debris. 00557_ EXIT=FOUND 00660_ ALERT: Derelict incursion detected, rerouting patrols to target area. 00766_ T-07 Excavator destroyed. 00782_ CH-4I8(R) destroyed. 00787_ BF-BO0(R) affixes Scrap Shield Fragment to Scrap Shield. 00787_ Lgt. Treads destroyed. 00798_ Critical hit (Meltdown: +250). 00799_ Seismic Detector destroyed. 00800_ Assault Rifle destroyed. 00800_ Ion Engine destroyed. 00803_ Lgt. Assault Rifle destroyed. 00809_ 52-0AT(R) affixes Scrap Shield Fragment to Scrap Shield. 00810_ BF-BO0(R) heat damages Sub. Optics. Map ----- +----------------------------------------------------+ | ??????????????????# #?????????# ## """ | | ??????????????????# #?????????# #? | | ??????????????????# #?????????# ######## | | ??????????????????# """ """ #?????????# | | ??????????????????# """ """ #?????????# | | ??????????????????# """ """ #?????????# | | ??????????????????# #########?# #### | | ??????????????????########+## ### " #### | | ???????????????????????# "" # | | ???????????????######### < "" # | | ???????????????# # """ !# | | #####+?????????# " # ## ## "" # | | # ?????????# """ # ## "!"!" ## """ # | | " # ???"?????# """ # ##""!"!""## """ # | | " # ###"T"#### """ + ########### "" += | | " # ? # "" # # ## "% %#!## | | " + # """ # # ## %[###? | | # """ # "" # # ## % "#?? | | # """ # """ + + ! ## T#?? | | # """ # " # # ## "#?? | | # # # # ## | #### | | #+### ######### # # | | # ######## # # | | # #; # ! # | | + #; ########## % | | # ## @ ##???????# | | ###T# # # !;########% ######### | | ##?### ## ; !%!* =%!# | | ###??# ## +!%< ]RR ! =%## | | # ### ## ; [ = %!% [!+ | | # # ## # #######;## ## | | # # + ###+###??## # ##"" | | ## # ## #?? ???? # # ##"Y | | ## ## #?? ???? # + ##"" | | ## # ######### #?? ??????????????????????? | | ########?????#######?? !?????????????????????? | | # #?????????????? !?????????????????????? | | + """#?????????????? ?????????????????????? | | # """#??????????????? ?????????????????????? | | # """#??????????????? ????????????????????? | | # #???????????????###????????????????????? | | #### #??????????????????????????????????????? | | ???########??????????????????????????????????????? | | ?????????????????????????????????????????????????? | | ?????????????????????????????????????????????????? | | ?????????????????????????????????????????????????? | | ?????????????????????????????????????????????????? | | ?????????????????????????????????????????????????? | | | | | +----------------------------------------------------+ Best States ------------- Heat Dissipation 25 Energy Generation 10 Energy Capacity 250 Matter Stores 280 Matter Capacity 300 Sight Range 16 Terrain Scan Density 10 Evasion (%) 40 Recoil Reduction 2 Item Schematics ----------------- None Robot Schematics ------------------ None Fabricated ------------ Nothing Repaired ---------- Nothing Alien Tech Used ----------------- None Achievements -------------- None Challenges ------------ None Game ------ Seed BombardmentSpikedMount Manual? 0 Play Time 00:10:37 Cumulative 85.4 hours Start 2025.08.04 @ 10:36:18 End 2025.08.04 @ 10:42:21 Sessions 1 Manual Loads 0 Difficulty Rogue Special Mode None Game No. 113 Rogue 113 Adventurer 0 Explorer 0 Win Type - Total 1 Types 1/0/0/0/0/0/0/0/0/0 Lore% 45 Gallery% 43 Achievement% 41 Wizard Run 0 Options --------- Layout 2 ASCII 0 Keyboard 1 Movement Numpad Keybinds 0 Fullscreen 1 Font 32/Tamsyn Map View 50x44 Zoom Use 0% Tactical HUD 1 Map Filters NONE Filters NONE Steam 1 RUN: 23184ead-d145-46c5-8263-5196935472ab